{"text_format":"1","workbook":"xlsx","n_sheets":1,"sheets":["Arkusz1"],"not_rendered":{"charts":0,"images":1,"macros":0,"external_links":0,"defined_names":0,"comments":0,"pivot_tables":0},"unopened":[],"bounds":{"document_bytes":16777216,"sheet_cells":100000,"rows_first":2000,"rows_last":500,"rows_between":2000,"halvings":0,"cell_chars":16384,"cell_head_chars":4096},"cells_cut":0,"cells_raw":0,"read":"whole","date_system":"1900"}

{"sheet":"Arkusz1","index":0,"n_rows":33,"n_cols":9,"rows_kept":33,"cut":false,"hidden":false,"merged":[[18,0,18,1],[18,2,18,3],[19,0,19,1],[17,0,17,1],[15,0,15,1],[14,0,14,1],[16,2,16,3],[16,0,16,1],[17,2,17,3],[15,2,15,3],[13,6,13,7],[14,2,14,3],[14,6,14,7],[18,6,18,7],[19,6,19,7],[16,6,16,7],[17,6,17,7],[15,6,15,7],[32,3,33,7],[13,0,13,1],[13,2,13,3],[5,0,5,1],[5,2,5,3],[11,0,11,1],[11,2,11,3],[7,0,7,1],[7,2,7,3],[10,0,10,1],[10,2,10,3],[9,0,9,1],[9,2,9,3],[8,0,8,1],[8,2,8,3],[7,6,7,7],[5,6,5,7],[0,0,1,8],[2,0,2,8],[3,0,3,1],[3,2,3,3],[3,6,3,7],[4,0,4,1],[4,2,4,3],[4,6,4,7],[6,6,6,7],[6,2,6,3],[6,0,6,1],[12,0,12,1],[12,2,12,3],[12,6,12,7],[11,6,11,7],[10,6,10,7],[9,6,9,7],[8,6,8,7],[20,0,20,1],[19,2,19,3],[20,2,20,3],[20,6,20,7],[21,0,21,1],[21,2,21,3],[21,6,21,7],[25,8,26,8],[22,0,22,1],[22,2,22,3],[23,8,24,8],[25,6,26,7],[23,0,24,5],[23,6,24,7],[22,6,22,7]]}
["Kalkulacja kosztów wykonania zamówienia publicznego "]
[]
[]
["Wyszczególnienie",null,"Minimalna liczba pokoi/\nosób/posiłków/usług\n",null,"Maksymalna liczba pokoi/\nosób/posiłków/usług ","Cena jednostkowa brutto \n(pokój/1 osoba/posiłów/usług)","Łączna minimalna wartość  brutto zamówienia ",null,"Łączna maksymalna wartość brutto zamówienia  "]
[1,null,2,null,3,4,"5=2*4",null,"7=3*4"]
["Pokój jednoosobowy\n(1 nocleg  dla 1 osoby) - nocleg  między dniem 07.09.2021 r. a 08.09.2021 r.",null,3,null,5,null,{"$f":"ROUND(C6*F6,2)","v":0},null,{"$f":"ROUND(E6*F6,2)","v":0}]
["Pokój dwuoosobowy (1 nocleg dla 2 osób) -  nocleg  między dniem 07.09.2021 r. a 08.09.2021 r.",null,0,null,5,null,{"$f":"ROUND(C7*F7,2)","v":0},null,0]
["Pokój jednoosobowy\n(1 nocleg  dla 1 osoby) - nocleg  między dniem 08.09.2021 r. a 09.09.2021 r.",null,15,null,40,null,0,null,0]
["Pokój dwuoosobowy (1 nocleg dla 2 osób) -  nocleg  między dniem 08.09.2021 r. a 09.09.2021 r.",null,10,null,40,null,{"$f":"ROUND(C9*F9,2)","v":0},null,0]
["Śniadanie \n(1 śniadanie dla 1 osoby) w dniu 08.09.2021 r.",null,3,null,15,null,{"$f":"ROUND(C10*F10,2)","v":0},null,0]
["Śniadanie \n(1 śniadanie dla 1 osoby) w dniu 09.09.2021 r.",null,35,null,120,null,{"$f":"ROUND(C11*F11,2)","v":0},null,0]
["Przerwy kawowe \n(cena za 1 przerwę kawową dla 1 osoby - 3 przerwy podczas konferencji ) w dniu 08.09.2021 r.",null,210,null,360,null,0,null,0]
["Przerwa kawowa\n(cena za 1 przerwę kawową dla 1 osoby) w dniu 09.09.2021 r.",null,70,null,120,null,{"$f":"ROUND(C13*F13,2)","v":0},null,0]
["Obiad (cena za 1 obiad dla 1 osoby)",null,70,null,120,null,0,null,0]
["Kolacja (1 kolacja dla jednej osoby)",null,70,null,120,null,0,null,0]
["Wynajęcie sali szkoleniowej  ",null,1,null,1,null,0,null,0]
["Zapewnienie oprawy muzycznej podczas kolacji",null,1,null,1,null,{"$f":"ROUND(C17*F17,2)","v":0},null,0]
["Transport materiałów konferencyjnych",null,1,null,1,null,0,null,0]
["Organizacja wycieczki terenowej ",null,1,null,1,null,{"$f":"ROUND(C19*F19,2)","v":0},null,0]
["Transport dla max 120 osób– cena za podstawienie autokaru ",null,1,null,1,null,0,null,0]
["Transport w ramach wycieczki terenowej dla max 120 osób ",null,1,null,1,null,0,null,0]
["Woda mineralna dla uczestników wizyty terenowej - 2 szt",null,70,null,120,null,0,null,0]
["Ubezpieczenie (2-dniowe dla 1 osoby)",null,70,null,120,null,0,null,0]
["Łączna wartość brutto wszystkich pozycji z zamówienia ",null,null,null,null,null,{"$f":"SUM(G6:H23)","v":0},null,{"$f":"SUM(I6:I23)","v":0}]
[]
[null,null,null,null,null,null,"Powyższą wartość należy wpisać do formularza ofertowgo w pozycji wartość minimalnego wynagrodzenia",null,"Powyższą wartość należy wpisać do formularza ofertowgo w pozycji wartość maksymalnego wynagrodzenia"]
[]
[]
[]
[]
[]
[]
[null,null,null,"Projekt LIFE15 GIE/PL/000758 pn. Masz prawo do skutecznej ochrony przyrody, finansowany ze środków Programu LIFE oraz ze środków Narodowego Funduszu Ochrony Środowiska i Gospodarki Wodnej."]